[Event "Titled Tuesday Blitz June 6 Early 2023"]
[White "Amitpal, Singh"]
[Black "Camilla_Lee"]
[WhiteFideId "5012899"]
[WhiteElo "2107"]
[BlackElo "2536"]
[Result "1/2-1/2"]
[Round "1"]
[TimeControl "180+2"]
[Date "2023.06.06"]
[WhiteClock "0:00:09"]
[BlackClock "0:00:05"]
[Board "189"]

1. e4 {[%clk 0:02:58]}  e5 {[%clk 0:02:57]} 2. Nf3 {[%clk 0:02:57]}  Nc6 {[%clk 0:02:54]} 3. d4 {[%clk 0:02:58]}  exd4 {[%clk 0:02:53]} 4. Nxd4 {[%clk 0:02:59]}  Nf6 {[%clk 0:02:53]} 5. Nc3 {[%clk 0:02:57]}  Bb4 {[%clk 0:02:52]} 6. Nxc6 {[%clk 0:02:51]}  bxc6 {[%clk 0:02:52]} 7. Bd3 {[%clk 0:02:49]}  d5 {[%clk 0:02:48]} 8. exd5 {[%clk 0:02:47]}  Qe7+ {[%clk 0:02:43]} 9. Qe2 {[%clk 0:02:42]}  Qxe2+ {[%clk 0:02:41]} 10. Bxe2 {[%clk 0:02:43]}  cxd5 {[%clk 0:02:40]} 11. Bd2 {[%clk 0:02:42]}  c6 {[%clk 0:02:38]} 12. O-O-O {[%clk 0:02:41]}  O-O {[%clk 0:02:36]} 13. f3 {[%clk 0:02:40]}  Bf5 {[%clk 0:02:35]} 14. g4 {[%clk 0:02:39]}  Bg6 {[%clk 0:02:35]} 15. h4 {[%clk 0:02:39]}  h6 {[%clk 0:02:35]} 16. g5 {[%clk 0:02:35]}  hxg5 {[%clk 0:02:35]} 17. hxg5 {[%clk 0:02:36]}  Nd7 {[%clk 0:02:35]} 18. Kb1 {[%clk 0:02:26]}  Rfe8 {[%clk 0:02:34]} 19. Bf1 {[%clk 0:02:24]}  Ne5 {[%clk 0:02:23]} 20. f4 {[%clk 0:02:08]}  Nf3 {[%clk 0:01:54]} 21. Bc1 {[%clk 0:02:04]}  d4 {[%clk 0:01:19]} 22. Ne2 {[%clk 0:01:54]}  Rad8 {[%clk 0:01:13]} 23. Ng3 {[%clk 0:01:50]}  f6 {[%clk 0:00:54]} 24. Bc4+ {[%clk 0:01:45]}  Bf7 {[%clk 0:00:50]} 25. Bd3 {[%clk 0:01:28]}  fxg5 {[%clk 0:00:32]} 26. fxg5 {[%clk 0:01:22]}  Ne5 {[%clk 0:00:30]} 27. Be4 {[%clk 0:01:06]}  c5 {[%clk 0:00:26]} 28. Rh3 {[%clk 0:00:57]}  Be6 {[%clk 0:00:22]} 29. Rh4 {[%clk 0:00:56]}  Bd5 {[%clk 0:00:20]} 30. Bh7+ {[%clk 0:00:34]}  Kf8 {[%clk 0:00:18]} 31. Rf1+ {[%clk 0:00:31]}  Ke7 {[%clk 0:00:17]} 32. Nf5+ {[%clk 0:00:31]}  Kd7 {[%clk 0:00:16]} 33. Nxg7 {[%clk 0:00:32]}  Rf8 {[%clk 0:00:16]} 34. Rhf4 {[%clk 0:00:23]}  Rxf4 {[%clk 0:00:14]} 35. Bxf4 {[%clk 0:00:21]}  Nc4 {[%clk 0:00:13]} 36. Bf5+ {[%clk 0:00:21]}  Kc6 {[%clk 0:00:13]} 37. Ne6 {[%clk 0:00:18]}  Re8 {[%clk 0:00:12]} 38. Ng7 {[%clk 0:00:10]}  Rf8 {[%clk 0:00:11]} 39. Bc1 {[%clk 0:00:08]}  Bd2 {[%clk 0:00:11]} 40. Bd7+ {[%clk 0:00:07]}  Kxd7 {[%clk 0:00:09]} 41. Rxf8 {[%clk 0:00:08]}  Bxc1 {[%clk 0:00:07]} 42. Kxc1 {[%clk 0:00:07]}  Ne5 {[%clk 0:00:08]} 43. Rf5 {[%clk 0:00:07]}  Kd6 {[%clk 0:00:08]} 44. Ne8+ {[%clk 0:00:06]}  Ke6 {[%clk 0:00:09]} 45. Nc7+ {[%clk 0:00:07]}  Kxf5 {[%clk 0:00:08]} 46. Nxd5 {[%clk 0:00:08]}  Kxg5 {[%clk 0:00:08]} 47. Ne7 {[%clk 0:00:08]}  Kf4 {[%clk 0:00:07]} 48. Nc8 {[%clk 0:00:09]}  a6 {[%clk 0:00:07]} 49. Nb6 {[%clk 0:00:09]}  Ke3 {[%clk 0:00:05]} 50. Na4 {[%clk 0:00:10]}  c4 {[%clk 0:00:05]} 51. Nb6 {[%clk 0:00:10]}  Ke4 {[%clk 0:00:04]} 52. b3 {[%clk 0:00:09]}  c3 {[%clk 0:00:04]} 53. Na4 {[%clk 0:00:08]}  Ke3 {[%clk 0:00:04]} 54. Nc5 {[%clk 0:00:08]}  Nc6 {[%clk 0:00:04]} 55. Nxa6 {[%clk 0:00:08]}  d3 {[%clk 0:00:03]} 56. cxd3 {[%clk 0:00:07]}  Kxd3 {[%clk 0:00:04]} 57. Nc5+ {[%clk 0:00:08]}  Kd4 {[%clk 0:00:05]} 58. Na4 {[%clk 0:00:08]}  Nb4 {[%clk 0:00:05]} 59. Nxc3 {[%clk 0:00:09]}  Kxc3 {[%clk 0:00:05]} 60. Kb1 {[%clk 0:00:09]}  Nd3 {[%clk 0:00:04]} 61. a3 {[%clk 0:00:08]}  Kxb3 {[%clk 0:00:05]} 62. a4 {[%clk 0:00:09]}  Kxa4 {[%clk 0:00:05]} 1/2-1/2


[Site "https://www.chess.com"]

[Event "Titled Tuesday Blitz June 6 Early 2023"]
[White "Bilan, Danila"]
[Black "Pinales Roussel, Gabriel"]
[WhiteFideId "24161918"]
[BlackFideId "3101762"]
[WhiteElo "2146"]
[BlackElo "2027"]
[Result "1-0"]
[Round "1"]
[TimeControl "180+2"]
[Date "2023.06.06"]
[WhiteClock "0:00:04"]
[BlackClock "0:00:10"]
[Board "190"]

1. d4 {[%clk 0:03:00]}  c5 {[%clk 0:02:59]} 2. e3 {[%clk 0:02:59]}  Nf6 {[%clk 0:02:56]} 3. Nf3 {[%clk 0:02:59]}  b6 {[%clk 0:02:56]} 4. Bc4 {[%clk 0:02:57]}  Bb7 {[%clk 0:02:53]} 5. c3 {[%clk 0:02:56]}  e6 {[%clk 0:02:52]} 6. O-O {[%clk 0:02:56]}  Be7 {[%clk 0:02:52]} 7. Nbd2 {[%clk 0:02:51]}  O-O {[%clk 0:02:52]} 8. Qe2 {[%clk 0:02:51]}  d5 {[%clk 0:02:43]} 9. Bd3 {[%clk 0:02:42]}  c4 {[%clk 0:02:37]} 10. Bc2 {[%clk 0:02:39]}  b5 {[%clk 0:02:37]} 11. a3 {[%clk 0:02:32]}  Nbd7 {[%clk 0:02:30]} 12. e4 {[%clk 0:02:32]}  dxe4 {[%clk 0:02:29]} 13. Nxe4 {[%clk 0:02:32]}  Nxe4 {[%clk 0:02:28]} 14. Bxe4 {[%clk 0:02:32]}  Bxe4 {[%clk 0:02:28]} 15. Qxe4 {[%clk 0:02:33]}  Nf6 {[%clk 0:02:28]} 16. Qc6 {[%clk 0:02:07]}  Rb8 {[%clk 0:02:20]} 17. Ne5 {[%clk 0:01:56]}  Rb6 {[%clk 0:02:15]} 18. Qf3 {[%clk 0:01:56]}  Nd5 {[%clk 0:02:14]} 19. Re1 {[%clk 0:01:47]}  a5 {[%clk 0:02:08]} 20. Bd2 {[%clk 0:01:43]}  b4 {[%clk 0:02:02]} 21. Nxc4 {[%clk 0:01:26]}  bxc3 {[%clk 0:01:50]} 22. bxc3 {[%clk 0:01:06]}  Rb3 {[%clk 0:01:46]} 23. Reb1 {[%clk 0:00:39]}  Rxb1+ {[%clk 0:01:43]} 24. Rxb1 {[%clk 0:00:38]}  Qc7 {[%clk 0:01:43]} 25. Ne5 {[%clk 0:00:27]}  Bxa3 {[%clk 0:01:42]} 26. c4 {[%clk 0:00:26]}  Bb4 {[%clk 0:01:27]} 27. cxd5 {[%clk 0:00:16]}  Bxd2 {[%clk 0:01:26]} 28. dxe6 {[%clk 0:00:14]}  fxe6 {[%clk 0:01:27]} 29. Qd3 {[%clk 0:00:06]}  Bb4 {[%clk 0:01:24]} 30. Rf1 {[%clk 0:00:04]}  Rd8 {[%clk 0:01:18]} 31. Qb3 {[%clk 0:00:04]}  Qb6 {[%clk 0:01:09]} 32. Nf3 {[%clk 0:00:03]}  Rd5 {[%clk 0:01:03]} 33. h3 {[%clk 0:00:03]}  Qb5 {[%clk 0:01:02]} 34. Rc1 {[%clk 0:00:03]}  Qb8 {[%clk 0:00:31]} 35. Qe3 {[%clk 0:00:03]}  Qe8 {[%clk 0:00:29]} 36. Ne5 {[%clk 0:00:02]}  Bd6 {[%clk 0:00:25]} 37. Nc4 {[%clk 0:00:01]}  Bf8 {[%clk 0:00:21]} 38. Nb6 {[%clk 0:00:01]}  Rb5 {[%clk 0:00:18]} 39. d5 {[%clk 0:00:02]}  e5 {[%clk 0:00:12]} 40. Rc8 {[%clk 0:00:01]}  Qe7 {[%clk 0:00:11]} 41. Nc4 {[%clk 0:00:01]}  Rxd5 {[%clk 0:00:10]} 42. f3 {[%clk 0:00:01]}  Rd1+ {[%clk 0:00:10]} 43. Kf2 {[%clk 0:00:02]}  Qb4 {[%clk 0:00:10]} 44. Qe4 {[%clk 0:00:02]}  Qa3 {[%clk 0:00:10]} 45. Kg3 {[%clk 0:00:02]}  Qxf3+ {[%clk 0:00:10]} 46. gxf3 {[%clk 0:00:03]}  Rg1+ {[%clk 0:00:10]} 47. Kf2 {[%clk 0:00:03]}  Rg6 {[%clk 0:00:10]} 48. Qd5+ {[%clk 0:00:04]} 1-0


[Site "https://www.chess.com"]

[Event "Titled Tuesday Blitz June 6 Early 2023"]
[White "Floresvillar Gonzalez, Luis Migu"]
[Black "Sharan, Rao"]
[WhiteFideId "5100542"]
[BlackFideId "5073464"]
[WhiteElo "2040"]
[BlackElo "2149"]
[Result "1/2-1/2"]
[Round "1"]
[TimeControl "180+2"]
[Date "2023.06.06"]
[WhiteClock "0:00:41"]
[BlackClock "0:00:04"]
[Board "193"]

1. d4 {[%clk 0:02:57]}  Nf6 {[%clk 0:02:47]} 2. c3 {[%clk 0:02:56]}  e6 {[%clk 0:01:55]} 3. Bg5 {[%clk 0:02:55]}  Be7 {[%clk 0:01:51]} 4. Nf3 {[%clk 0:02:55]}  O-O {[%clk 0:01:48]} 5. Nbd2 {[%clk 0:02:52]}  d5 {[%clk 0:01:46]} 6. e3 {[%clk 0:02:51]}  Ne4 {[%clk 0:01:41]} 7. Bxe7 {[%clk 0:02:50]}  Qxe7 {[%clk 0:01:41]} 8. Bd3 {[%clk 0:02:50]}  f5 {[%clk 0:01:38]} 9. Ne5 {[%clk 0:02:44]}  Nd7 {[%clk 0:01:32]} 10. O-O {[%clk 0:02:43]}  Nxe5 {[%clk 0:01:30]} 11. dxe5 {[%clk 0:02:42]}  c5 {[%clk 0:01:27]} 12. f3 {[%clk 0:02:42]}  Nxd2 {[%clk 0:01:26]} 13. Qxd2 {[%clk 0:02:42]}  Bd7 {[%clk 0:01:14]} 14. f4 {[%clk 0:02:39]}  Bc6 {[%clk 0:01:12]} 15. a4 {[%clk 0:02:36]}  Rad8 {[%clk 0:01:12]} 16. Bb5 {[%clk 0:02:27]}  Qc7 {[%clk 0:00:59]} 17. Rfd1 {[%clk 0:02:23]}  a6 {[%clk 0:00:58]} 18. Bxc6 {[%clk 0:02:17]}  Qxc6 {[%clk 0:00:59]} 19. a5 {[%clk 0:02:12]}  Rd7 {[%clk 0:00:59]} 20. b4 {[%clk 0:02:03]}  Rc8 {[%clk 0:00:57]} 21. Rac1 {[%clk 0:02:01]}  Rdc7 {[%clk 0:00:48]} 22. h3 {[%clk 0:01:42]}  cxb4 {[%clk 0:00:47]} 23. cxb4 {[%clk 0:01:41]}  Qxc1 {[%clk 0:00:47]} 24. Rxc1 {[%clk 0:01:42]}  Rxc1+ {[%clk 0:00:48]} 25. Kh2 {[%clk 0:01:42]}  R8c4 {[%clk 0:00:45]} 26. b5 {[%clk 0:01:34]}  axb5 {[%clk 0:00:45]} 27. a6 {[%clk 0:01:35]}  bxa6 {[%clk 0:00:42]} 28. Qa5 {[%clk 0:01:35]}  h6 {[%clk 0:00:33]} 29. Qxa6 {[%clk 0:01:35]}  Rc6 {[%clk 0:00:20]} 30. Qxb5 {[%clk 0:01:32]}  R1c2 {[%clk 0:00:21]} 31. h4 {[%clk 0:01:22]}  Kh7 {[%clk 0:00:21]} 32. h5 {[%clk 0:01:20]}  Rc8 {[%clk 0:00:17]} 33. Qd7 {[%clk 0:01:18]}  R2c6 {[%clk 0:00:16]} 34. Qf7 {[%clk 0:01:17]}  Kh8 {[%clk 0:00:17]} 35. Qd7 {[%clk 0:01:15]}  Kh7 {[%clk 0:00:15]} 36. Qf7 {[%clk 0:01:15]}  Ra6 {[%clk 0:00:11]} 37. Qg6+ {[%clk 0:01:11]}  Kg8 {[%clk 0:00:11]} 38. Qg3 {[%clk 0:01:01]}  Rc2 {[%clk 0:00:10]} 39. Qh4 {[%clk 0:01:00]}  Raa2 {[%clk 0:00:09]} 40. Qd8+ {[%clk 0:00:59]}  Kh7 {[%clk 0:00:09]} 41. Qe8 {[%clk 0:00:52]}  Rxg2+ {[%clk 0:00:10]} 42. Kh3 {[%clk 0:00:47]}  Rh2+ {[%clk 0:00:10]} 43. Kg3 {[%clk 0:00:47]}  Rag2+ {[%clk 0:00:11]} 44. Kf3 {[%clk 0:00:47]}  Rf2+ {[%clk 0:00:10]} 45. Kg3 {[%clk 0:00:46]}  Rhg2+ {[%clk 0:00:11]} 46. Kh3 {[%clk 0:00:46]}  Rg4 {[%clk 0:00:05]} 47. Qxe6 {[%clk 0:00:43]}  Rf3+ {[%clk 0:00:05]} 48. Kh2 {[%clk 0:00:42]}  Rf2+ {[%clk 0:00:05]} 49. Kh3 {[%clk 0:00:42]}  Rf3+ {[%clk 0:00:06]} 50. Kh2 {[%clk 0:00:42]}  Rf2+ {[%clk 0:00:05]} 51. Kh1 {[%clk 0:00:41]}  Rf1+ {[%clk 0:00:04]} 52. Kh2 {[%clk 0:00:41]}  Rf2+ {[%clk 0:00:04]} 1/2-1/2


[Site "https://www.chess.com"]

[Event "Titled Tuesday Blitz June 6 Early 2023"]
[White "Taichman, Ori"]
[Black "Zallio, Luciano de Souza"]
[WhiteFideId "2804069"]
[BlackFideId "2109700"]
[WhiteElo "2237"]
[BlackElo "2057"]
[Result "1-0"]
[Round "1"]
[TimeControl "180+2"]
[Date "2023.06.06"]
[WhiteClock "0:00:12"]
[BlackClock "0:00:16"]
[Board "194"]

1. e4 {[%clk 0:03:00]}  e6 {[%clk 0:02:59]} 2. d4 {[%clk 0:03:00]}  d5 {[%clk 0:02:59]} 3. Nc3 {[%clk 0:03:01]}  Nf6 {[%clk 0:02:52]} 4. Bg5 {[%clk 0:03:01]}  Be7 {[%clk 0:02:52]} 5. e5 {[%clk 0:03:01]}  Nfd7 {[%clk 0:02:53]} 6. Bxe7 {[%clk 0:03:02]}  Qxe7 {[%clk 0:02:54]} 7. f4 {[%clk 0:03:03]}  a6 {[%clk 0:02:54]} 8. Nf3 {[%clk 0:03:03]}  c5 {[%clk 0:02:54]} 9. dxc5 {[%clk 0:03:03]}  Nc6 {[%clk 0:02:54]} 10. Qd2 {[%clk 0:03:03]}  Nxc5 {[%clk 0:02:52]} 11. a3 {[%clk 0:03:00]}  O-O {[%clk 0:02:48]} 12. Bd3 {[%clk 0:03:00]}  Nxd3+ {[%clk 0:02:46]} 13. cxd3 {[%clk 0:03:00]}  f6 {[%clk 0:02:46]} 14. Qe3 {[%clk 0:02:45]}  fxe5 {[%clk 0:02:44]} 15. Nxe5 {[%clk 0:02:42]}  Qh4+ {[%clk 0:02:15]} 16. g3 {[%clk 0:02:37]}  Qh3 {[%clk 0:02:14]} 17. Ne2 {[%clk 0:02:27]}  Nxe5 {[%clk 0:01:55]} 18. fxe5 {[%clk 0:02:14]}  Qg2 {[%clk 0:01:45]} 19. O-O-O {[%clk 0:02:11]}  Rf3 {[%clk 0:01:40]} 20. Rhg1 {[%clk 0:01:55]}  Qf2 {[%clk 0:01:34]} 21. Qxf2 {[%clk 0:01:54]}  Rxf2 {[%clk 0:01:34]} 22. Kd2 {[%clk 0:01:52]}  Rxh2 {[%clk 0:01:34]} 23. Rc1 {[%clk 0:01:44]}  Bd7 {[%clk 0:01:34]} 24. Rc7 {[%clk 0:01:44]}  Bc6 {[%clk 0:01:33]} 25. Ke3 {[%clk 0:01:43]}  Rf8 {[%clk 0:01:30]} 26. Nf4 {[%clk 0:01:39]}  Re8 {[%clk 0:01:22]} 27. b4 {[%clk 0:01:32]}  g5 {[%clk 0:01:19]} 28. Ne2 {[%clk 0:01:27]}  Rf8 {[%clk 0:01:19]} 29. Nd4 {[%clk 0:01:20]}  Rff2 {[%clk 0:01:16]} 30. Nxe6 {[%clk 0:01:08]}  g4 {[%clk 0:01:07]} 31. Rc8+ {[%clk 0:00:50]}  Kf7 {[%clk 0:01:02]} 32. Rf8+ {[%clk 0:00:43]}  Kxe6 {[%clk 0:01:01]} 33. Rxf2 {[%clk 0:00:44]}  d4+ {[%clk 0:00:58]} 34. Ke2 {[%clk 0:00:44]}  Bf3+ {[%clk 0:00:56]} 35. Ke1 {[%clk 0:00:43]}  Rh6 {[%clk 0:00:56]} 36. Rc2 {[%clk 0:00:24]}  Kxe5 {[%clk 0:00:54]} 37. Rc5+ {[%clk 0:00:24]}  Kd6 {[%clk 0:00:53]} 38. Rf1 {[%clk 0:00:19]}  Rh3 {[%clk 0:00:49]} 39. Rg1 {[%clk 0:00:16]}  Rh2 {[%clk 0:00:45]} 40. a4 {[%clk 0:00:13]}  Rb2 {[%clk 0:00:44]} 41. Rh5 {[%clk 0:00:12]}  Rxb4 {[%clk 0:00:42]} 42. Rxh7 {[%clk 0:00:12]}  Rb2 {[%clk 0:00:36]} 43. a5 {[%clk 0:00:11]}  Kc5 {[%clk 0:00:35]} 44. Rf1 {[%clk 0:00:09]}  Re2+ {[%clk 0:00:34]} 45. Kd1 {[%clk 0:00:09]}  Rg2+ {[%clk 0:00:32]} 46. Kc1 {[%clk 0:00:08]}  Rxg3 {[%clk 0:00:31]} 47. Rh5+ {[%clk 0:00:07]}  Kb4 {[%clk 0:00:31]} 48. Rf2 {[%clk 0:00:07]}  Kc3 {[%clk 0:00:31]} 49. Rc5+ {[%clk 0:00:06]}  Kxd3 {[%clk 0:00:31]} 50. Rd2+ {[%clk 0:00:06]}  Ke3 {[%clk 0:00:30]} 51. Re5+ {[%clk 0:00:06]}  Be4 {[%clk 0:00:29]} 52. Rd1 {[%clk 0:00:05]}  Kf4 {[%clk 0:00:27]} 53. Re7 {[%clk 0:00:04]}  Bf3 {[%clk 0:00:25]} 54. Rxd4+ {[%clk 0:00:04]}  Kg5 {[%clk 0:00:24]} 55. Rg7+ {[%clk 0:00:04]}  Kf6 {[%clk 0:00:25]} 56. Rdd7 {[%clk 0:00:04]}  Rg2 {[%clk 0:00:24]} 57. Rgf7+ {[%clk 0:00:03]}  Ke5 {[%clk 0:00:24]} 58. Rde7+ {[%clk 0:00:03]}  Kd4 {[%clk 0:00:25]} 59. Rd7+ {[%clk 0:00:03]}  Ke3 {[%clk 0:00:25]} 60. Rfe7+ {[%clk 0:00:03]}  Kf4 {[%clk 0:00:24]} 61. Rd6 {[%clk 0:00:03]}  g3 {[%clk 0:00:22]} 62. Rf6+ {[%clk 0:00:03]}  Kg4 {[%clk 0:00:22]} 63. Rg6+ {[%clk 0:00:03]}  Kh5 {[%clk 0:00:22]} 64. Reg7 {[%clk 0:00:04]}  Be4 {[%clk 0:00:17]} 65. Rxg3 {[%clk 0:00:03]}  Rxg3 {[%clk 0:00:16]} 66. Rxg3 {[%clk 0:00:04]}  Bc6 {[%clk 0:00:15]} 67. Kd2 {[%clk 0:00:04]}  Kh4 {[%clk 0:00:16]} 68. Rg1 {[%clk 0:00:04]}  Kh3 {[%clk 0:00:16]} 69. Ke3 {[%clk 0:00:04]}  Kh2 {[%clk 0:00:17]} 70. Rg7 {[%clk 0:00:04]}  Kh3 {[%clk 0:00:17]} 71. Kd4 {[%clk 0:00:05]}  Kh4 {[%clk 0:00:17]} 72. Kc5 {[%clk 0:00:05]}  Kh5 {[%clk 0:00:17]} 73. Kb6 {[%clk 0:00:06]}  Kh6 {[%clk 0:00:17]} 74. Rxb7 {[%clk 0:00:07]}  Bf3 {[%clk 0:00:15]} 75. Kxa6 {[%clk 0:00:06]}  Kg6 {[%clk 0:00:15]} 76. Re7 {[%clk 0:00:05]}  Kf6 {[%clk 0:00:16]} 77. Re3 {[%clk 0:00:06]}  Bd5 {[%clk 0:00:15]} 78. Kb6 {[%clk 0:00:06]}  Bg2 {[%clk 0:00:15]} 79. a6 {[%clk 0:00:07]}  Kf5 {[%clk 0:00:15]} 80. a7 {[%clk 0:00:08]}  Kf6 {[%clk 0:00:15]} 81. Re8 {[%clk 0:00:08]}  Bd5 {[%clk 0:00:15]} 82. a8=Q {[%clk 0:00:09]}  Bxa8 {[%clk 0:00:16]} 83. Rxa8 {[%clk 0:00:10]}  Ke7 {[%clk 0:00:16]} 84. Rc8 {[%clk 0:00:11]}  Kd7 {[%clk 0:00:16]} 85. Rc6 {[%clk 0:00:12]} 1-0


[Site "https://www.chess.com"]

[Event "Titled Tuesday Blitz June 6 Early 2023"]
[White "Richter, Paul"]
[Black "Naguleswaran, Annorjan"]
[WhiteFideId "2046350"]
[BlackFideId "2093197"]
[WhiteElo "2524"]
[BlackElo "2108"]
[Result "1-0"]
[Round "1"]
[TimeControl "180+2"]
[Date "2023.06.06"]
[WhiteClock "0:00:06"]
[BlackClock "0:00:02"]
[Board "198"]

1. e4 {[%clk 0:02:59]}  e5 {[%clk 0:02:55]} 2. Nf3 {[%clk 0:02:58]}  Nc6 {[%clk 0:02:55]} 3. Bb5 {[%clk 0:02:57]}  Nf6 {[%clk 0:02:55]} 4. d3 {[%clk 0:02:57]}  d6 {[%clk 0:02:48]} 5. c3 {[%clk 0:02:56]}  Bd7 {[%clk 0:02:48]} 6. O-O {[%clk 0:02:56]}  g6 {[%clk 0:02:48]} 7. d4 {[%clk 0:02:45]}  Bg7 {[%clk 0:02:45]} 8. d5 {[%clk 0:02:44]}  Ne7 {[%clk 0:02:44]} 9. Bxd7+ {[%clk 0:02:45]}  Qxd7 {[%clk 0:02:44]} 10. Qd3 {[%clk 0:02:43]}  O-O {[%clk 0:02:36]} 11. c4 {[%clk 0:02:43]}  Ne8 {[%clk 0:02:35]} 12. Nc3 {[%clk 0:02:42]}  f5 {[%clk 0:02:34]} 13. Ne1 {[%clk 0:02:39]}  fxe4 {[%clk 0:02:22]} 14. Nxe4 {[%clk 0:02:36]}  Qf5 {[%clk 0:02:09]} 15. f3 {[%clk 0:02:31]}  Nf6 {[%clk 0:02:05]} 16. Nc2 {[%clk 0:02:13]}  c6 {[%clk 0:01:25]} 17. Ne3 {[%clk 0:02:04]}  Qd7 {[%clk 0:01:00]} 18. dxc6 {[%clk 0:01:53]}  Qxc6 {[%clk 0:00:53]} 19. Qxd6 {[%clk 0:01:42]}  Nxe4 {[%clk 0:00:20]} 20. Qxc6 {[%clk 0:01:08]}  Nxc6 {[%clk 0:00:19]} 21. fxe4 {[%clk 0:01:09]}  Nd4 {[%clk 0:00:19]} 22. Bd2 {[%clk 0:00:59]}  Bh6 {[%clk 0:00:18]} 23. Rad1 {[%clk 0:00:31]}  Rad8 {[%clk 0:00:14]} 24. Rxf8+ {[%clk 0:00:27]}  Kxf8 {[%clk 0:00:09]} 25. Nd5 {[%clk 0:00:24]}  Bxd2 {[%clk 0:00:06]} 26. Rxd2 {[%clk 0:00:25]}  Rc8 {[%clk 0:00:07]} 27. b3 {[%clk 0:00:22]}  Kg7 {[%clk 0:00:08]} 28. h3 {[%clk 0:00:18]}  b5 {[%clk 0:00:08]} 29. cxb5 {[%clk 0:00:16]}  Nxb5 {[%clk 0:00:08]} 30. Nb4 {[%clk 0:00:12]}  Rc1+ {[%clk 0:00:08]} 31. Kh2 {[%clk 0:00:13]}  Nd4 {[%clk 0:00:09]} 32. Rf2 {[%clk 0:00:10]}  a5 {[%clk 0:00:09]} 33. Nd3 {[%clk 0:00:10]}  Ra1 {[%clk 0:00:09]} 34. Nxe5 {[%clk 0:00:11]}  a4 {[%clk 0:00:09]} 35. bxa4 {[%clk 0:00:12]}  Ne6 {[%clk 0:00:08]} 36. a5 {[%clk 0:00:11]}  Nc5 {[%clk 0:00:09]} 37. Rf7+ {[%clk 0:00:10]}  Kh6 {[%clk 0:00:09]} 38. Rc7 {[%clk 0:00:11]}  Nxe4 {[%clk 0:00:09]} 39. Ng4+ {[%clk 0:00:11]}  Kg5 {[%clk 0:00:09]} 40. Rxh7 {[%clk 0:00:11]}  Rxa2 {[%clk 0:00:09]} 41. Ra7 {[%clk 0:00:11]}  Nd2 {[%clk 0:00:08]} 42. Ne3 {[%clk 0:00:09]}  Kf4 {[%clk 0:00:08]} 43. Nd5+ {[%clk 0:00:08]}  Ke5 {[%clk 0:00:07]} 44. Nc3 {[%clk 0:00:08]}  Rc2 {[%clk 0:00:07]} 45. Nd1 {[%clk 0:00:07]}  Nf1+ {[%clk 0:00:06]} 46. Kg1 {[%clk 0:00:08]}  Nd2 {[%clk 0:00:05]} 47. a6 {[%clk 0:00:08]}  Rc1 {[%clk 0:00:06]} 48. Re7+ {[%clk 0:00:08]}  Kf4 {[%clk 0:00:04]} 49. Re1 {[%clk 0:00:09]}  Nc4 {[%clk 0:00:02]} 50. Rf1+ {[%clk 0:00:08]}  Kg3 {[%clk 0:00:02]} 51. Ne3 {[%clk 0:00:06]} 1-0


[Site "https://www.chess.com"]

[Event "Titled Tuesday Blitz June 6 Early 2023"]
[White "Lakshmi C"]
[Black "Huber, Benedikt"]
[WhiteFideId "25035347"]
[BlackFideId "12923583"]
[WhiteElo "1942"]
[BlackElo "2215"]
[Result "0-1"]
[Round "1"]
[TimeControl "180+2"]
[Date "2023.06.06"]
[WhiteClock "0:00:01"]
[BlackClock "0:00:26"]
[Board "199"]

1. e4 {[%clk 0:02:57]}  c5 {[%clk 0:02:58]} 2. Nf3 {[%clk 0:02:57]}  e6 {[%clk 0:02:58]} 3. d4 {[%clk 0:02:57]}  cxd4 {[%clk 0:02:59]} 4. Nxd4 {[%clk 0:02:57]}  Nc6 {[%clk 0:03:00]} 5. Nc3 {[%clk 0:02:56]}  Qc7 {[%clk 0:02:59]} 6. a3 {[%clk 0:02:54]}  a6 {[%clk 0:02:57]} 7. Be3 {[%clk 0:02:51]}  Nf6 {[%clk 0:02:57]} 8. Be2 {[%clk 0:02:47]}  b5 {[%clk 0:02:57]} 9. O-O {[%clk 0:02:37]}  Bb7 {[%clk 0:02:57]} 10. Bf3 {[%clk 0:02:32]}  Ne5 {[%clk 0:02:50]} 11. Bf4 {[%clk 0:02:06]}  Nxf3+ {[%clk 0:02:50]} 12. Qxf3 {[%clk 0:02:05]}  e5 {[%clk 0:02:50]} 13. Bg3 {[%clk 0:02:05]}  d6 {[%clk 0:02:31]} 14. Nf5 {[%clk 0:02:00]}  g6 {[%clk 0:02:22]} 15. Ne3 {[%clk 0:01:49]}  Bg7 {[%clk 0:02:19]} 16. Bh4 {[%clk 0:01:46]}  Nh5 {[%clk 0:02:11]} 17. Ned5 {[%clk 0:01:39]}  Bxd5 {[%clk 0:02:03]} 18. Nxd5 {[%clk 0:01:38]}  Qb7 {[%clk 0:02:02]} 19. Be7 {[%clk 0:00:25]}  Qd7 {[%clk 0:01:13]} 20. Rad1 {[%clk 0:00:16]}  Ra7 {[%clk 0:01:06]} 21. g4 {[%clk 0:00:07]}  Nf4 {[%clk 0:01:01]} 22. Bxd6 {[%clk 0:00:04]}  Qxd6 {[%clk 0:00:45]} 23. Nxf4 {[%clk 0:00:04]}  Qf6 {[%clk 0:00:46]} 24. Qd3 {[%clk 0:00:02]}  O-O {[%clk 0:00:44]} 25. Nd5 {[%clk 0:00:02]}  Qg5 {[%clk 0:00:44]} 26. Qe3 {[%clk 0:00:02]}  Qxg4+ {[%clk 0:00:43]} 27. Kh1 {[%clk 0:00:02]}  Qh5 {[%clk 0:00:36]} 28. Qxa7 {[%clk 0:00:01]}  Qf3+ {[%clk 0:00:35]} 29. Kg1 {[%clk 0:00:02]}  Qg4+ {[%clk 0:00:31]} 30. Kh1 {[%clk 0:00:02]}  Bh6 {[%clk 0:00:27]} 31. f3 {[%clk 0:00:02]}  Qh3 {[%clk 0:00:28]} 32. Nf6+ {[%clk 0:00:02]}  Kg7 {[%clk 0:00:28]} 33. Ng4 {[%clk 0:00:02]}  Qh5 {[%clk 0:00:29]} 34. Qe7 {[%clk 0:00:01]}  Bf4 {[%clk 0:00:28]} 35. Qf6+ {[%clk 0:00:01]}  Kg8 {[%clk 0:00:29]} 36. Qe7 {[%clk 0:00:01]}  f5 {[%clk 0:00:26]} 0-1


[Site "https://www.chess.com"]

[Event "Titled Tuesday Blitz June 6 Early 2023"]
[White "Chylewski, Patryk"]
[Black "Delorme, Alban"]
[WhiteFideId "1186191"]
[BlackFideId "623636"]
[WhiteElo "2163"]
[BlackElo "2196"]
[Result "1-0"]
[Round "1"]
[TimeControl "180+2"]
[Date "2023.06.06"]
[WhiteClock "0:00:57"]
[BlackClock "0:00:58"]
[Board "200"]

1. e4 {[%clk 0:02:57]}  c5 {[%clk 0:02:58]} 2. Nf3 {[%clk 0:02:57]}  d6 {[%clk 0:02:57]} 3. c3 {[%clk 0:02:57]}  Nf6 {[%clk 0:02:57]} 4. h3 {[%clk 0:02:57]}  g6 {[%clk 0:02:57]} 5. Bd3 {[%clk 0:02:56]}  Bg7 {[%clk 0:02:58]} 6. Bc2 {[%clk 0:02:57]}  O-O {[%clk 0:02:59]} 7. O-O {[%clk 0:02:57]}  Nc6 {[%clk 0:02:59]} 8. d4 {[%clk 0:02:57]}  e5 {[%clk 0:02:55]} 9. dxc5 {[%clk 0:02:52]}  dxc5 {[%clk 0:02:55]} 10. Be3 {[%clk 0:02:52]}  Qe7 {[%clk 0:02:54]} 11. Nbd2 {[%clk 0:02:47]}  b6 {[%clk 0:02:53]} 12. Qe2 {[%clk 0:02:46]}  a5 {[%clk 0:02:52]} 13. Bd3 {[%clk 0:02:44]}  Rd8 {[%clk 0:02:47]} 14. Rfd1 {[%clk 0:02:42]}  Bb7 {[%clk 0:02:45]} 15. Bg5 {[%clk 0:02:37]}  Rd7 {[%clk 0:02:39]} 16. Nc4 {[%clk 0:02:36]}  b5 {[%clk 0:02:33]} 17. Nb6 {[%clk 0:02:35]}  c4 {[%clk 0:02:32]} 18. Nxd7 {[%clk 0:02:20]}  cxd3 {[%clk 0:02:32]} 19. Qxd3 {[%clk 0:02:12]}  Rd8 {[%clk 0:02:26]} 20. Nxf6+ {[%clk 0:02:08]}  Bxf6 {[%clk 0:02:26]} 21. Bxf6 {[%clk 0:02:08]}  Qxf6 {[%clk 0:02:15]} 22. Qxb5 {[%clk 0:02:08]}  Qe7 {[%clk 0:02:01]} 23. Rxd8+ {[%clk 0:02:02]}  Nxd8 {[%clk 0:02:02]} 24. Qxe5 {[%clk 0:01:59]}  Qd7 {[%clk 0:01:58]} 25. Qd4 {[%clk 0:01:54]}  Qe7 {[%clk 0:01:56]} 26. Re1 {[%clk 0:01:34]}  Ne6 {[%clk 0:01:56]} 27. Qe5 {[%clk 0:01:29]}  f6 {[%clk 0:01:54]} 28. Qxa5 {[%clk 0:01:28]}  Qd6 {[%clk 0:01:48]} 29. Qb4 {[%clk 0:01:21]}  Qd7 {[%clk 0:01:44]} 30. Nd4 {[%clk 0:01:18]}  Nf4 {[%clk 0:01:43]} 31. Qb5 {[%clk 0:01:08]}  Qc7 {[%clk 0:01:38]} 32. Qe8+ {[%clk 0:01:04]}  Kg7 {[%clk 0:01:36]} 33. Ne6+ {[%clk 0:01:04]}  Nxe6 {[%clk 0:01:37]} 34. Qxe6 {[%clk 0:01:05]}  Bc8 {[%clk 0:01:36]} 35. Qd5 {[%clk 0:01:02]}  Qf4 {[%clk 0:01:03]} 36. e5 {[%clk 0:00:59]}  f5 {[%clk 0:01:00]} 37. e6 {[%clk 0:00:58]}  Kf6 {[%clk 0:00:58]} 38. e7 {[%clk 0:00:57]} 1-0


[Site "https://www.chess.com"]